fUSD/lending_fUSD_20260628
["ID","MTS","AMOUNT","RATE_DAILY","PERIOD"]
[426600436,1782659442000,-500.0,0.00024657,2]
[426600430,1782659442000,-500.0,0.00024657,2]
[426600431,1782659442000,-500.0,0.00024657,2]
[426600432,1782659442000,-500.0,0.00024657,2]
[426600434,1782659442000,-500.0,0.00024657,2]
[426600433,1782659442000,-500.0,0.00024657,2]
[426600435,1782659442000,-500.0,0.00024657,2]
[426600438,1782659442000,-500.0,0.00024657,2]
[426600449,1782659442000,-649.74,0.00024668,2]
[426600452,1782659442000,-1834.64417172,0.00024778,2]
[426600454,1782659442000,-905.58,0.000249,7]
[426600401,1782659442000,-17228.73,0.00024174,2]
[426600422,1782659442000,-500.0,0.00024657,2]
[426600399,1782659442000,-465.08,0.00024174,2]
[426600367,1782659442000,-1834.64417172,0.00023956,2]
[426600390,1782659442000,-253.85,0.0002411,2]
[426600440,1782659442000,-472.94619313,0.00024657,2]
[426600338,1782659442000,-222.87997659,0.000239,2]
[426600340,1782659442000,-174.3991004,0.00023956,2]
[426600347,1782659442000,-1500.0,0.00023956,2]
[426600343,1782659442000,-500.0,0.00023956,2]
[426600345,1782659442000,-1500.0,0.00023956,2]
[426600349,1782659442000,-1500.0,0.00023956,2]
[426600360,1782659442000,-1500.0,0.00023956,2]
[426600363,1782659442000,-1500.0,0.00023956,2]
[426600351,1782659442000,-1500.0,0.00023956,2]
[426600365,1782659442000,-1500.0,0.00023956,2]
[426600369,1782659442000,-159.0,0.00024,2]
[426600356,1782659442000,-1500.0,0.00023956,2]
[426600358,1782659442000,-1500.0,0.00023956,2]
[426600372,1782659442000,-487.0,0.00024,2]
[426600353,1782659442000,-1500.0,0.00023956,2]
[426600376,1782659442000,-200.0,0.00024,2]
[426600374,1782659442000,-499.0,0.00024,2]
[426600386,1782659442000,-840.0,0.00024,2]
[426600381,1782659442000,-207.0,0.00024,2]
[426600379,1782659442000,-278.0,0.00024,2]
[426600388,1782659442000,-213.0,0.00024,2]
[426600397,1782659442000,-266.17,0.00024174,2]
[426600383,1782659442000,-197.0,0.00024,2]
[426600394,1782659442000,-1078.83,0.00024174,2]
[426600392,1782659442000,-151.0,0.00024174,2]
[426600456,1782659442000,-336.10044118,0.00024982,2]
[426600426,1782659442000,-500.0,0.00024657,2]
[426600441,1782659442000,-1000.0,0.00024658,2]
[426600508,1782659442000,-169.82055937,0.00025078,2]
[426600518,1782659442000,-303.6951104,0.00025084,2]
[426600510,1782659442000,-303.14792568,0.00025078,2]
[426600514,1782659442000,-197.07875804,0.00025084,2]
[426600516,1782659442000,-171.62756041,0.00025084,2]
[426600512,1782659442000,-362.0450052,0.00025084,2]
[426600527,1782659442000,-1961.15,0.00025401,2]
[426600525,1782659442000,-1834.64417172,0.00025326,2]
[426600530,1782659442000,-520.16865279,0.000256,2]
[426600532,1782659442000,-1500.0,0.000256,2]
[426600536,1782659442000,-150.0,0.00025675,7]
[426600547,1782659442000,-151.0,0.00025797,7]
[426600534,1782659442000,-1834.64417172,0.000256,2]
[426600544,1782659442000,-517.890697,0.0002579,2]
[426600538,1782659442000,-1685.63302615,0.00025686,2]
[426600552,1782659442000,-159.473421,0.000258,2]
[426600542,1782659442000,-2000.0,0.00025714,7]
[426600540,1782659442000,-181.24037038,0.000257,2]
[426600549,1782659442000,-961788.79281715,0.000258,2]
[426600555,1782659442000,-151.0,0.000258,2]
[426600558,1782659442000,-151.0,0.000258,2]
[426600571,1782659442000,-428.072156,0.000258,2]
[426600562,1782659442000,-428.072156,0.000258,2]
[426600566,1782659442000,-428.072156,0.000258,2]
[426600569,1782659442000,-428.072156,0.000258,2]
[426600523,1782659442000,-2650.0,0.00025245,5]
[426600520,1782659442000,-152.5080818,0.00025084,2]
[426600439,1782659442000,-500.0,0.00024657,2]
[426600497,1782659442000,-537.6845,0.00025052,2]
[426600504,1782659442000,-176.75948389,0.00025078,2]
[426600445,1782659442000,-151.0,0.00024658,2]
[426600443,1782659442000,-151.0,0.00024658,2]
[426600447,1782659442000,-330.1,0.00024658,2]
[426600458,1782659442000,-365.25636488,0.00024982,2]
[426600460,1782659442000,-491.13920909,0.00025,2]
[426600469,1782659442000,-212.0,0.00025,2]
[426600463,1782659442000,-516.55488836,0.00025,2]
[426600467,1782659442000,-283.0,0.00025,2]
[426600465,1782659442000,-205.0,0.00025,2]
[426600474,1782659442000,-848.41652807,0.00025,2]
[426600481,1782659442000,-324.88067749,0.00025,2]
[426600476,1782659442000,-219.0,0.00025,2]
[426600478,1782659442000,-341.55580191,0.00025,2]
[426600471,1782659442000,-199.23341983,0.00025,2]
[426600506,1782659442000,-206.6743463,0.00025078,2]
[426600501,1782659442000,-1834.64417172,0.00025052,2]
[426600493,1782659442000,-326.38364261,0.00025,2]
[426600483,1782659442000,-208.18353571,0.00025,2]
[426600495,1782659442000,-204.52982973,0.00025,2]
[426600499,1782659442000,-1500.0,0.00025052,2]
[426600491,1782659442000,-305.39582157,0.00025,2]
[426600487,1782659442000,-356.69248408,0.00025,2]
[426600503,1782659442000,-394.81947424,0.00025078,2]
[426600485,1782659442000,-336.13560692,0.00025,2]
[426600489,1782659442000,-340.68128622,0.00025,2]
[426600655,1782659443000,-413.34869261,0.00025921,2]
[426600650,1782659443000,-206.60900634,0.00025921,2]
[426600647,1782659443000,-1834.64417172,0.00025874,2]
[426600656,1782659443000,-217.72951859,0.00025921,2]
[426600641,1782659443000,-212.6605913,0.00025841,2]
[426600658,1782659443000,-339.64111874,0.00025921,2]
[426600653,1782659443000,-592.22921137,0.00025921,2]
[426600654,1782659443000,-156.91069662,0.00025921,2]
[426600652,1782659443000,-353.51896779,0.00025921,2]
[426600662,1782659443000,-232.10002932,0.00025926,2]
[426600643,1782659443000,-409.05965946,0.00025841,2]
[426600660,1782659443000,-454.72188852,0.00025921,2]
[426600685,1782659443000,-222.66482543,0.00025926,2]
[426600666,1782659443000,-394.15751608,0.00025926,2]
[426600673,1782659443000,-295.55101203,0.00025926,2]
[426600677,1782659443000,-455.5426656,0.00025926,2]
[426600679,1782659443000,-200.07502498,0.00025926,2]
[426600671,1782659443000,-343.25512083,0.00025926,2]
[426600681,1782659443000,-210.60952638,0.00025926,2]
[426600670,1782659443000,-229.2529904,0.00025926,2]
[426600668,1782659443000,-209.16972794,0.00025926,2]
[426600676,1782659443000,-223.14169338,0.00025926,2]
[426600683,1782659443000,-305.01616361,0.00025926,2]
[426600696,1782659443000,-1500.0,0.00026148,2]
[426600639,1782659443000,-234.96135515,0.00025841,2]
[426600664,1782659443000,-543.0675078,0.00025926,2]
[426600637,1782659443000,-489.57546392,0.00025841,2]
[426600602,1782659443000,-207.91,0.0002581,2]
[426600628,1782659443000,-535.03872612,0.00025841,2]
[426600579,1782659443000,-2061.051868,0.000258,2]
[426600697,1782659443000,-1834.64417172,0.00026148,2]
[426600575,1782659443000,-2061.051868,0.000258,2]
[426600577,1782659443000,-2061.051868,0.000258,2]
[426600586,1782659443000,-151.0,0.000258,15]
[426600583,1782659443000,-151.0,0.000258,15]
[426600573,1782659443000,-2061.051868,0.000258,2]
[426600581,1782659443000,-151.0,0.000258,15]
[426600604,1782659443000,-504.15066177,0.00025823,2]
[426600590,1782659443000,-210.425724,0.000258,15]
[426600608,1782659443000,-512.33370286,0.00025841,2]
[426600606,1782659443000,-547.88454732,0.00025823,2]
[426600635,1782659443000,-511.02192933,0.00025841,2]
[426600593,1782659443000,-280.259016,0.000258,2]
[426600611,1782659443000,-421.99952873,0.00025841,2]
[426600597,1782659443000,-280.259016,0.000258,2]
[426600599,1782659443000,-280.259016,0.000258,2]
[426600613,1782659443000,-221.08876565,0.00025841,2]
[426600616,1782659443000,-287.85401081,0.00025841,2]
[426600620,1782659443000,-195.4430452,0.00025841,2]
[426600618,1782659443000,-487.32101623,0.00025841,2]
[426600622,1782659443000,-416.36707141,0.00025841,2]
[426600630,1782659443000,-248.98027082,0.00025841,2]
[426600624,1782659443000,-237.45778333,0.00025841,2]
[426600633,1782659443000,-458.09373236,0.00025841,2]
[426600626,1782659443000,-504.20341038,0.00025841,2]
[426600595,1782659443000,-280.259016,0.000258,2]
[426600588,1782659443000,-151.0,0.000258,15]
[426600699,1782659443000,-150.0,0.00026213,5]
[426600702,1782659443000,-191.7918444,0.00026224,2]
[426600769,1782659443000,-331.62360172,0.00026401,2]
[426600763,1782659443000,-178.18053159,0.00026401,2]
[426600765,1782659443000,-311.72619887,0.00026401,2]
[426600767,1782659443000,-474.91556665,0.00026401,2]
[426600780,1782659443000,-681.36257243,0.00026401,2]
[426600771,1782659443000,-176.3200614,0.00026401,2]
[426600773,1782659443000,-672.27121385,0.00026401,2]
[426600761,1782659443000,-624.55060712,0.00026401,2]
[426600776,1782659443000,-713.38496816,0.00026401,2]
[426600782,1782659443000,-610.79164314,0.00026401,2]
[426600784,1782659443000,-382.1798092,0.00026401,2]
[426600778,1782659443000,-497.96054164,0.00026401,2]
[426600758,1782659443000,-649.76135497,0.00026401,2]
[426600788,1782659443000,-322.63337688,0.00026401,2]
[426600797,1782659443000,-1834.64417172,0.00026422,2]
[426600790,1782659443000,-469.92271029,0.00026401,2]
[426600799,1782659443000,-413.21801268,0.00026482,2]
[426600792,1782659443000,-425.3211826,0.00026401,2]
[426600807,1782659443000,-435.45903718,0.00026482,2]
[426600795,1782659443000,-613.58948919,0.00026401,2]
[426600803,1782659443000,-789.63894849,0.00026482,2]
[426600805,1782659443000,-620.02303891,0.00026482,2]
[426600801,1782659443000,-530.27845168,0.00026482,2]
[426600809,1782659443000,-509.46167812,0.00026482,2]
[426600811,1782659443000,-606.29585136,0.00026482,2]
[426600703,1782659443000,-3561.0,0.00026225,2]
[426600786,1782659443000,-652.76728522,0.00026401,2]
[426600751,1782659443000,-177.06887181,0.00026401,2]
[426600813,1782659443000,-464.20005865,0.00026488,2]
[426600753,1782659443000,-442.1775313,0.00026401,2]
[426600688,1782659443000,-181.32,0.00026027,7]
[426600689,1782659443000,-199.66,0.00026068,2]
[426600705,1782659443000,-1361.0,0.00026225,2]
[426600691,1782659443000,-1416.8,0.00026071,2]
[426600693,1782659443000,-1961.15,0.00026086,2]
[426600709,1782659443000,-151.0,0.00026275,3]
[426600707,1782659443000,-1277.0,0.00026225,2]
[426600737,1782659443000,-335.8444851,0.00026401,2]
[426600724,1782659443000,-154.3749952,0.00026383,2]
[426600730,1782659443000,-228.54514201,0.00026383,2]
[426600722,1782659443000,-730.51272976,0.00026383,2]
[426600726,1782659443000,-365.33942806,0.00026383,2]
[426600728,1782659443000,-378.07254209,0.00026383,2]
[426600712,1782659443000,-151.0,0.00026275,3]
[426600732,1782659443000,-317.60458123,0.00026401,2]
[426600714,1782659443000,-438.09161625,0.00026383,2]
[426600747,1782659443000,-173.07526783,0.00026401,2]
[426600749,1782659443000,-210.99976437,0.00026401,2]
[426600756,1782659443000,-575.70802162,0.00026401,2]
[426600743,1782659443000,-219.88939533,0.00026401,2]
[426600745,1782659443000,-683.11160381,0.00026401,2]
[426600739,1782659443000,-225.60141123,0.00026401,2]
[426600720,1782659443000,-204.58016172,0.00026383,2]
[426600735,1782659443000,-199.02243494,0.00026401,2]
[426600716,1782659443000,-672.20088236,0.00026383,2]
[426600718,1782659443000,-201.28974261,0.00026383,2]
[426600741,1782659443000,-156.06982587,0.00026401,2]
[426600887,1782659444000,-2061.051868,0.000268,2]
[426600889,1782659444000,-2061.051868,0.000268,2]
[426600901,1782659444000,-812.20169372,0.00026961,2]
[426600885,1782659444000,-2061.051868,0.000268,2]
[426600900,1782659444000,-864.5204809,0.00026961,2]
[426600875,1782659444000,-151.0,0.000268,2]
[426600898,1782659444000,-280.259016,0.000268,2]
[426600896,1782659444000,-280.259016,0.000268,2]
[426600894,1782659444000,-280.259016,0.000268,2]
[426600883,1782659444000,-428.072156,0.000268,2]
[426600899,1782659444000,-280.259016,0.000268,2]
[426600903,1782659444000,-763.48955393,0.00026961,2]
[426600934,1782659444000,-8301.13170016,0.0002739,2]
[426600905,1782659444000,-851.70321554,0.00026961,2]
[426600908,1782659444000,-768.48009561,0.00026961,2]
[426600913,1782659444000,-231.19826869,0.00027035,3]
[426600917,1782659444000,-789.46108275,0.0002705,2]
[426600915,1782659444000,-757.86981419,0.00027044,2]
[426600910,1782659444000,-1834.64417172,0.0002697,2]
[426600911,1782659444000,-1000.0,0.00027,2]
[426600920,1782659444000,-759.237776,0.0002705,2]
[426600918,1782659444000,-905.11251299,0.0002705,2]
[426600922,1782659444000,-951.08955136,0.0002705,2]
[426600924,1782659444000,-905.58,0.000271,7]
[426600873,1782659444000,-151.0,0.000268,2]
[426600906,1782659444000,-815.95910653,0.00026961,2]
[426600867,1782659444000,-151.0,0.00026797,7]
[426600846,1782659444000,-310.12526559,0.00026488,2]
[426600871,1782659444000,-830948.6232059,0.000268,2]
[426600937,1782659444000,-150.0,0.00027397,2]
[426600815,1782659444000,-319.29644036,0.00026488,2]
[426600821,1782659444000,-156.98164314,0.00026488,2]
[426600817,1782659444000,-724.09001039,0.00026488,2]
[426600823,1782659444000,-458.5059808,0.00026488,2]
[426600819,1782659444000,-591.23627412,0.00026488,2]
[426600832,1782659444000,-400.15004996,0.00026488,2]
[426600825,1782659444000,-514.88268124,0.00026488,2]
[426600830,1782659444000,-607.3902208,0.00026488,2]
[426600828,1782659444000,-591.10202405,0.00026488,2]
[426600834,1782659444000,-222.28753369,0.00026488,2]
[426600836,1782659444000,-383.35189707,0.00026488,2]
[426600838,1782659444000,-457.52424541,0.00026488,2]
[426600840,1782659444000,-394.31387541,0.00026488,2]
[426600855,1782659444000,-1500.0,0.00026696,2]
[426600842,1782659444000,-445.32965085,0.00026488,2]
[426600844,1782659444000,-346.02611204,0.00026488,2]
[426600861,1782659444000,-1961.15,0.00026771,2]
[426600859,1782659444000,-1416.8,0.00026756,2]
[426600863,1782659444000,-214.9565391,0.00026771,2]
[426600857,1782659444000,-1834.64417172,0.00026696,2]
[426600865,1782659444000,-151.0,0.00026797,7]
[426600881,1782659444000,-428.072156,0.000268,2]
[426600879,1782659444000,-428.072156,0.000268,2]
[426600877,1782659444000,-428.072156,0.000268,2]
[426600869,1782659444000,-268.18,0.00026797,7]
[426600936,1782659444000,-180.20999459,0.00027391,2]
[426600892,1782659444000,-2061.051868,0.000268,2]
[426600941,1782659444000,-1500.0,0.00027397,2]
[426600982,1782659444000,-464.48760709,0.00027397,2]
[426600987,1782659444000,-460.5441993,0.00027397,2]
[426600989,1782659444000,-614.0589324,0.00027397,2]
[426600995,1782659444000,-5227.15,0.000274,2]
[426600991,1782659444000,-549.07,0.000274,7]
[426600994,1782659444000,-5227.15,0.000274,2]
[426600997,1782659444000,-5227.15,0.000274,2]
[426600998,1782659444000,-5227.15,0.000274,2]
[426600992,1782659444000,-5227.15,0.000274,2]
[426601009,1782659444000,-1834.64417172,0.00027792,2]
[426601002,1782659444000,-205.5101132,0.000275,2]
[426601004,1782659444000,-500.0,0.000275,7]
[426600984,1782659444000,-153.5147331,0.00027397,2]
[426601007,1782659444000,-1500.0,0.00027792,2]
[426601000,1782659444000,-1416.82,0.00027441,2]
[426601014,1782659444000,-979.15092783,0.00027802,2]
[426601011,1782659444000,-916.18746472,0.00027802,2]
[426601018,1782659444000,-1019.34,0.00027842,2]
[426601016,1782659444000,-1000.0,0.00027842,2]
[426601019,1782659444000,-1685.63302615,0.00027843,2]
[426601012,1782659444000,-1022.04385865,0.00027802,2]
[426601021,1782659444000,-909.44377703,0.00027887,2]
[426601023,1782659444000,-1106.40775583,0.00027892,2]
[426601025,1782659444000,-1086.13501559,0.00027892,2]
[426601026,1782659444000,-1141.30746164,0.00027892,2]
[426600939,1782659444000,-359.57772198,0.00027397,2]
[426601006,1782659444000,-1834.64417172,0.00027518,2]
[426600986,1782659444000,-307.0294662,0.00027397,2]
[426601028,1782659444000,-800.29439441,0.00027957,2]
[426600973,1782659444000,-160.05887888,0.00027397,2]
[426600980,1782659444000,-232.24380354,0.00027397,2]
[426600932,1782659444000,-4202.43124681,0.0002739,2]
[426600927,1782659444000,-1834.64417172,0.00027244,2]
[426600931,1782659444000,-2678.81,0.00027315,2]
[426600929,1782659444000,-150.0,0.00027261,5]
[426600925,1782659444000,-1500.0,0.00027244,2]
[426600950,1782659444000,-151.0,0.00027397,2]
[426600948,1782659444000,-151.0,0.00027397,2]
[426600945,1782659444000,-530.85,0.00027397,2]
[426600952,1782659444000,-330.1,0.00027397,2]
[426600946,1782659444000,-300.0,0.00027397,2]
[426600954,1782659444000,-686.412918,0.00027397,2]
[426600957,1782659444000,-686.412918,0.00027397,2]
[426600943,1782659444000,-161.14,0.00027397,2]
[426600962,1782659444000,-686.412918,0.00027397,2]
[426600976,1782659444000,-480.17663664,0.00027397,2]
[426600974,1782659444000,-320.11775776,0.00027397,2]
[426600971,1782659444000,-4281.64,0.00027397,10]
[426600964,1782659444000,-686.412918,0.00027397,2]
[426600967,1782659444000,-6165.56,0.00027397,10]
[426600978,1782659444000,-640.23551553,0.00027397,2]
[426600966,1782659444000,-686.412918,0.00027397,2]
[426600961,1782659444000,-686.412918,0.00027397,2]
[426600955,1782659444000,-686.412918,0.00027397,2]
[426601030,1782659444000,-160.0,0.00028,2]
[426600959,1782659444000,-686.412918,0.00027397,2]
[426600969,1782659444000,-5137.97,0.00027397,10]
[426601114,1782659445000,-23055.64750027,0.00029,2]
[426601111,1782659445000,-508.85,0.00029,2]
[426601125,1782659445000,-21848.34627574,0.00029,2]
[426601109,1782659445000,-500.0,0.00029,2]
[426601090,1782659445000,-153.80243392,0.00028739,21]
[426601100,1782659445000,-960.35327329,0.00028798,2]
[426601098,1782659445000,-210.14,0.00028771,7]
[426601103,1782659445000,-1500.0,0.00028888,2]
[426601092,1782659445000,-150.0,0.00028767,2]
[426601096,1782659445000,-220.07639403,0.00028767,2]
[426601107,1782659445000,-340.90404,0.000289,2]
[426601105,1782659445000,-1834.64417172,0.00028888,2]
[426601131,1782659445000,-73274.61330483,0.00029,2]
[426601118,1782659445000,-20833.91118305,0.00029,2]
[426601127,1782659445000,-451.20785105,0.00029,2]
[426601122,1782659445000,-1004.4210907,0.00029,2]
[426601120,1782659445000,-10382.44625727,0.00029,2]
[426601133,1782659445000,-216.79,0.00029,7]
[426601136,1782659445000,-150.0,0.00029,2]
[426601143,1782659445000,-1142.34274914,0.00029063,2]
[426601149,1782659445000,-549.07,0.000291,7]
[426601129,1782659445000,-220.48113941,0.00029,2]
[426601138,1782659445000,-1192.38450176,0.00029063,2]
[426601094,1782659445000,-500.0,0.00028767,2]
[426601140,1782659445000,-1068.8853755,0.00029063,2]
[426601116,1782659445000,-5338.19213494,0.00029,2]
[426601085,1782659445000,-213.0,0.00028723,30]
[426601055,1782659445000,-150.0,0.00028572,5]
[426601083,1782659445000,-154.0,0.00028723,30]
[426601145,1782659445000,-350.0,0.00029074,2]
[426601032,1782659445000,-643.0,0.00028,2]
[426601034,1782659445000,-22500.0,0.00028,2]
[426601037,1782659445000,-1427.45,0.0002816,2]
[426601039,1782659445000,-1500.0,0.0002834,2]
[426601041,1782659445000,-1834.64417172,0.0002834,2]
[426601045,1782659445000,-171.63,0.00028493,2]
[426601053,1782659445000,-2000.0,0.00028571,7]
[426601043,1782659445000,-549.07,0.000284,7]
[426601047,1782659445000,-317.0,0.000285,2]
[426601051,1782659445000,-322.0,0.000285,2]
[426601049,1782659445000,-310.0,0.000285,2]
[426601059,1782659445000,-1834.64417172,0.00028614,2]
[426601061,1782659445000,-153.0,0.00028671,30]
[426601057,1782659445000,-241304.32810256,0.00028586,2]
[426601063,1782659445000,-158.0,0.00028671,30]
[426601073,1782659445000,-278.0,0.00028671,30]
[426601065,1782659445000,-487.0,0.00028671,30]
[426601067,1782659445000,-499.0,0.00028671,30]
[426601069,1782659445000,-200.0,0.00028671,30]
[426601071,1782659445000,-155.0,0.00028671,30]
[426601075,1782659445000,-207.0,0.0002868,30]
[426601077,1782659445000,-197.0,0.0002868,30]
[426601079,1782659445000,-840.0,0.0002868,30]
[426601081,1782659445000,-2678.81,0.00028685,2]
[426601087,1782659445000,-154.21593943,0.00028723,30]
[426601147,1782659445000,-905.58,0.000291,7]
[426601036,1782659445000,-1834.64417172,0.00028066,2]
[426601158,1782659445000,-1834.64417172,0.00029162,2]
[426601216,1782659445000,-300.61712354,0.00029881,2]
[426601223,1782659445000,-80565.21042707,0.000299,2]
[426601227,1782659445000,-316.14949869,0.000299,2]
[426601231,1782659445000,-428.072156,0.000299,7]
[426601225,1782659445000,-175.63861038,0.000299,2]
[426601233,1782659445000,-428.072156,0.000299,7]
[426601229,1782659445000,-549.07,0.000299,7]
[426601235,1782659445000,-428.072156,0.000299,7]
[426601243,1782659445000,-2061.051868,0.000299,7]
[426601237,1782659445000,-428.072156,0.000299,7]
[426601245,1782659445000,-2061.051868,0.000299,7]
[426601247,1782659445000,-2061.051868,0.000299,7]
[426601239,1782659445000,-434.81599949,0.000299,2]
[426601241,1782659445000,-2061.051868,0.000299,7]
[426601249,1782659445000,-151.0,0.000299,7]
[426601253,1782659445000,-280.259016,0.000299,7]
[426601251,1782659445000,-280.259016,0.000299,7]
[426601259,1782659445000,-65925.32813021,0.000299,2]
[426601255,1782659445000,-280.259016,0.000299,7]
[426601257,1782659445000,-280.259016,0.000299,7]
[426601265,1782659445000,-686.412918,0.000299,7]
[426601261,1782659445000,-686.412918,0.000299,7]
[426601263,1782659445000,-686.412918,0.000299,7]
[426601271,1782659445000,-160.0,0.00029911,2]
[426601267,1782659445000,-686.412918,0.000299,7]
[426601219,1782659445000,-151.0,0.00029899,7]
[426601214,1782659445000,-200.0,0.00029858,2]
[426601269,1782659445000,-247.0,0.00029908,2]
[426601221,1782659445000,-151.0,0.00029899,7]
[426601212,1782659445000,-366.0,0.00029857,2]
[426601156,1782659445000,-1267.15751819,0.00029156,2]
[426601166,1782659445000,-649.345,0.00029225,2]
[426601161,1782659445000,-500.0,0.00029224,7]
[426601170,1782659445000,-1000.0,0.000295,2]
[426601163,1782659445000,-205.55545713,0.00029224,7]
[426601154,1782659445000,-1061.01773987,0.0002915,2]
[426601174,1782659445000,-204.46253596,0.0002952,2]
[426601168,1782659445000,-1500.0,0.00029436,2]
[426601172,1782659445000,-238.02255953,0.0002952,2]
[426601176,1782659445000,-153.0,0.00029671,30]
[426601178,1782659445000,-158.0,0.00029671,30]
[426601180,1782659445000,-487.0,0.00029671,30]
[426601151,1782659445000,-693.16096788,0.00029149,7]
[426601189,1782659445000,-278.0,0.00029671,30]
[426601183,1782659445000,-499.0,0.00029671,30]
[426601209,1782659445000,-170.0,0.00029827,2]
[426601205,1782659445000,-197.18852701,0.000298,2]
[426601207,1782659445000,-17025.43,0.00029815,2]
[426601200,1782659445000,-213.0,0.00029723,30]
[426601203,1782659445000,-203.6441282,0.00029738,30]
[426601198,1782659445000,-154.0,0.00029723,30]
[426601191,1782659445000,-207.0,0.0002968,30]
[426601187,1782659445000,-155.0,0.00029671,30]
[426601196,1782659445000,-840.0,0.0002968,30]
[426601185,1782659445000,-200.0,0.00029671,30]
[426601194,1782659445000,-197.0,0.0002968,30]
[426601362,1782659446000,-500.0,0.0003,7]
[426601358,1782659446000,-500.0,0.0003,7]
[426601360,1782659446000,-500.0,0.0003,7]
[426601356,1782659446000,-500.0,0.0003,7]
[426601333,1782659446000,-12499.99,0.0003,2]
[426601343,1782659446000,-500.0,0.0003,7]
[426601345,1782659446000,-500.0,0.0003,7]
[426601329,1782659446000,-12500.0,0.0003,2]
[426601364,1782659446000,-500.0,0.0003,7]
[426601331,1782659446000,-12499.99,0.0003,2]
[426601368,1782659446000,-500.0,0.0003,7]
[426601377,1782659446000,-500.0,0.0003,7]
[426601370,1782659446000,-500.0,0.0003,7]
[426601373,1782659446000,-500.0,0.0003,7]
[426601379,1782659446000,-500.0,0.0003,7]
[426601337,1782659446000,-500.0,0.0003,7]
[426601375,1782659446000,-506.59,0.0003,7]
[426601385,1782659446000,-500.0,0.0003,7]
[426601395,1782659446000,-500.0,0.0003,7]
[426601391,1782659446000,-500.0,0.0003,7]
[426601381,1782659446000,-500.0,0.0003,7]
[426601387,1782659446000,-500.0,0.0003,7]
[426601393,1782659446000,-500.0,0.0003,7]
[426601389,1782659446000,-500.0,0.0003,7]
[426601366,1782659446000,-500.0,0.0003,7]
[426601339,1782659446000,-500.0,0.0003,7]
[426601317,1782659446000,-95150.0,0.0003,5]
[426601335,1782659446000,-12499.99,0.0003,2]
[426601383,1782659446000,-500.0,0.0003,7]
[426601274,1782659446000,-385.0,0.00029943,2]
[426601276,1782659446000,-250.0,0.00029957,7]
[426601282,1782659446000,-12499.97,0.0003,2]
[426601280,1782659446000,-242.49776427,0.0002999,2]
[426601287,1782659446000,-150.0,0.0003,2]
[426601285,1782659446000,-12500.0,0.0003,2]
[426601289,1782659446000,-800.0,0.0003,2]
[426601278,1782659446000,-700.0,0.00029989,2]
[426601291,1782659446000,-12499.99,0.0003,2]
[426601296,1782659446000,-275.97330948,0.0003,2]
[426601294,1782659446000,-12499.99,0.0003,2]
[426601297,1782659446000,-278.32836216,0.0003,2]
[426601300,1782659446000,-20335.72116223,0.0003,2]
[426601310,1782659446000,-1000.0,0.0003,2]
[426601313,1782659446000,-166.78212043,0.0003,2]
[426601306,1782659446000,-1129.45462786,0.0003,2]
[426601308,1782659446000,-1859.66618216,0.0003,2]
[426601325,1782659446000,-800.0,0.0003,2]
[426601320,1782659446000,-5069.02862504,0.0003,2]
[426601302,1782659446000,-1117.27963732,0.0003,2]
[426601315,1782659446000,-14619.4117846,0.0003,2]
[426601322,1782659446000,-1230.88,0.0003,2]
[426601304,1782659446000,-10385.94496012,0.0003,2]
[426601341,1782659446000,-500.0,0.0003,7]
[426601342,1782659446000,-500.0,0.0003,7]
[426601327,1782659446000,-12499.99,0.0003,2]